{"text_format":"1","workbook":"xlsx","n_sheets":3,"sheets":["一覧","moto","設定"],"not_rendered":{"charts":0,"images":0,"macros":1,"external_links":0,"defined_names":19,"comments":2,"pivot_tables":0},"unopened":[],"bounds":{"document_bytes":16777216,"sheet_cells":100000,"rows_first":2000,"rows_last":500,"rows_between":2000,"halvings":0,"cell_chars":16384,"cell_head_chars":4096},"cells_cut":0,"cells_raw":0,"read":"whole","date_system":"1900"}

{"sheet":"一覧","index":0,"n_rows":24,"n_cols":40,"rows_kept":24,"cut":false,"hidden":false,"merged":[[1,1,1,3],[1,4,1,7],[1,8,1,11],[1,12,1,14],[1,36,1,38],[1,15,1,18],[1,19,1,22],[1,23,1,26],[1,27,1,29],[1,30,1,32],[1,33,1,35]]}
[null,{"$f":"設定!D10","v":"理科 カリキュラム表（植物準備表）　　◆新設　●新実験"},null,null,null,null,null,null,null,null,null,null,null,null,null,null,null,null,null,null,null,null,null,null,null,null,null,6,"月",4,"日","現在"]
[null,"4月",null,null,"5月",null,null,null,"6月",null,null,null,"7月",null,null,"9月",null,null,null,"10月",null,null,null,"11月",null,null,null,"12月",null,null,"1月",null,null,"2月",null,null,"3月",null,null,"時数"]
[]
["行事等"]
["研修"]
["1年生活",null,null,null,null,null,null,null,null,null,null,null,null,null,null,null,null,null,null,null,null,null,null,null,null,null,null,null,null,null,null,null,null,null,null,null,null,null,null,102]
["2年生活",null,null,null,null,null,null,null,null,null,null,null,null,null,null,null,null,null,null,null,null,null,null,null,null,null,null,null,null,null,null,null,null,null,null,null,null,null,null,105]
["小3理",null,null,null,null,null,null,null,null,null,null,null,null,null,null,null,null,null,null,null,null,null,null,null,null,null,null,null,null,null,null,null,null,null,null,null,null,null,null,90]
["小4理",null,null,null,null,null,null,null,null,null,null,null,null,null,null,null,null,null,null,null,null,null,null,null,null,null,null,null,null,null,null,null,null,null,null,null,null,null,null,106]
["小5理",null,null,null,null,null,null,null,null,null,null,null,null,null,null,null,null,null,null,null,null,null,null,null,null,null,null,null,null,null,null,null,null,null,null,null,null,null,null,105]
["小6理",null,null,null,null,null,null,null,null,null,null,null,null,null,null,null,null,null,null,null,null,null,null,null,null,null,null,null,null,null,null,null,null,null,null,null,null,null,null,105]
["中1理",null,null,null,null,null,null,null,null,null,null,null,null,null,null,null,null,null,null,null,null,null,null,null,null,null,null,null,null,null,null,null,null,null,null,null,null,null,null,105]
["中2理",null,null,null,null,null,null,null,null,null,null,null,null,null,null,null,null,null,null,null,null,null,null,null,null,null,null,null,null,null,null,null,null,null,null,null,null,null,null,140]
["中3理",null,null,null,null,null,null,null,null,null,null,null,null,null,null,null,null,null,null,null,null,null,null,null,null,null,null,null,null,null,null,null,null,null,null,null,null,null,null,140]
[null,null,null,null,null,null,null,null,null,null,null,null,null,null,null,null,null,null,null,null,null,null,null,null,null,null,null,null,null,null,null,null,null,null,null,null,null,null,null,{"$f":"INDIRECT(\"[\"&HLOOKUP(A15,設定!D$26:W$28, 3, FALSE)&\"]\"&A15&\"!C1\")","v":{"$error":"#N/A"}}]
[null,null,null,null,null,null,null,null,null,null,null,null,null,null,null,null,null,null,null,null,null,null,null,null,null,null,null,null,null,null,null,null,null,null,null,null,null,null,null,{"$f":"INDIRECT(\"[\"&HLOOKUP(A16,設定!D$26:W$28, 3, FALSE)&\"]\"&A16&\"!C1\")","v":{"$error":"#N/A"}}]
[null,null,null,null,null,null,null,null,null,null,null,null,null,null,null,null,null,null,null,null,null,null,null,null,null,null,null,null,null,null,null,null,null,null,null,null,null,null,null,{"$f":"INDIRECT(\"[\"&HLOOKUP(A17,設定!D$26:W$28, 3, FALSE)&\"]\"&A17&\"!C1\")","v":{"$error":"#N/A"}}]
[null,null,null,null,null,null,null,null,null,null,null,null,null,null,null,null,null,null,null,null,null,null,null,null,null,null,null,null,null,null,null,null,null,null,null,null,null,null,null,{"$f":"INDIRECT(\"[\"&HLOOKUP(A18,設定!D$26:W$28, 3, FALSE)&\"]\"&A18&\"!C1\")","v":{"$error":"#N/A"}}]
[null,null,null,null,null,null,null,null,null,null,null,null,null,null,null,null,null,null,null,null,null,null,null,null,null,null,null,null,null,null,null,null,null,null,null,null,null,null,null,{"$f":"INDIRECT(\"[\"&HLOOKUP(A19,設定!D$26:W$28, 3, FALSE)&\"]\"&A19&\"!C1\")","v":{"$error":"#N/A"}}]
[null,null,null,null,null,null,null,null,null,null,null,null,null,null,null,null,null,null,null,null,null,null,null,null,null,null,null,null,null,null,null,null,null,null,null,null,null,null,null,{"$f":"INDIRECT(\"[\"&HLOOKUP(A20,設定!D$26:W$28, 3, FALSE)&\"]\"&A20&\"!C1\")","v":{"$error":"#N/A"}}]
[null,null,null,null,null,null,null,null,null,null,null,null,null,null,null,null,null,null,null,null,null,null,null,null,null,null,null,null,null,null,null,null,null,null,null,null,null,null,null,{"$f":"INDIRECT(\"[\"&HLOOKUP(A21,設定!D$26:W$28, 3, FALSE)&\"]\"&A21&\"!C1\")","v":{"$error":"#N/A"}}]
[null,null,null,null,null,null,null,null,null,null,null,null,null,null,null,null,null,null,null,null,null,null,null,null,null,null,null,null,null,null,null,null,null,null,null,null,null,null,null,{"$f":"INDIRECT(\"[\"&HLOOKUP(A22,設定!D$26:W$28, 3, FALSE)&\"]\"&A22&\"!C1\")","v":{"$error":"#N/A"}}]
[null,null,null,null,null,null,null,null,null,null,null,null,null,null,null,null,null,null,null,null,null,null,null,null,null,null,null,null,null,null,null,null,null,null,null,null,null,null,null,{"$f":"INDIRECT(\"[\"&HLOOKUP(A23,設定!D$26:W$28, 3, FALSE)&\"]\"&A23&\"!C1\")","v":{"$error":"#N/A"}}]
[null,null,null,null,null,null,null,null,null,null,null,null,null,null,null,null,null,null,null,null,null,null,null,null,null,null,null,null,null,null,null,null,null,null,null,null,null,null,null,{"$f":"INDIRECT(\"[\"&HLOOKUP(A24,設定!D$26:W$28, 3, FALSE)&\"]\"&A24&\"!C1\")","v":{"$error":"#N/A"}}]

{"sheet":"moto","index":1,"n_rows":41,"n_cols":18,"rows_kept":41,"cut":false,"hidden":true,"merged":[]}
["ver2010mtoda",null,{"$f":"SUM(C2:C41)","v":0},"Link",{"$f":"SWtop","v":"新設"},{"$f":"OFFSET(SWtop,0,1)","v":"研修"},{"$f":"OFFSET(SWtop,0,2)","v":"新実験・観察"},{"$f":"OFFSET(SWtop,0,3)","v":"研修資料"},{"$f":"OFFSET(SWtop,0,4)","v":"研修会２"},{"$f":"OFFSET(SWtop,0,5)","v":"項目０６"},{"$f":"OFFSET(SWtop,0,6)","v":"項目０７"},{"$f":"OFFSET(SWtop,0,7)","v":0},{"$f":"OFFSET(SWtop,0,8)","v":0},{"$f":"OFFSET(SWtop,0,9)","v":"上越学習"},"LeftBox","TopBox","WidthBox","RowBox"]
[1,"ここに単元名を入れる\n上は教科名\n右のセルは単元時数"]
[2]
[3]
[4]
[5]
[6]
[7]
[8]
[9]
[10]
[11]
[12]
[13]
[14]
[15]
[16]
[17]
[18]
[19]
[20]
[21]
[22]
[23]
[24]
[25]
[26]
[27]
[28]
[29]
[30]
[31]
[32]
[33]
[34]
[35]
[36]
[37]
[38]
[39]
[40]

{"sheet":"設定","index":2,"n_rows":136,"n_cols":23,"rows_kept":136,"cut":false,"hidden":false,"merged":[[20,3,20,9],[4,2,4,11],[9,3,9,9],[14,3,14,4],[15,3,15,4]]}
[null,2010]
[null,"JVCG 2012",null,null,"Jyoetsu Visual Curriculum Generator",null,null,null," Ver.3.2",null,"Copyright(C) 2008- mtoda@toda-family.net"]
[]
[null,"◇作成手順　（詳しくは、左の＋をクリック）",null,null,null,null,null,null,null,null,"※注","うまくいかないときはデータの名前　xlsxかxlsmかを確認せよ"]
[null,null,"１．スイッチの項目を設定する。（『一覧』シートの設定の項目）\n\n２．教科シートの作成をする。→別の『教科シート』を起動し、作成や調整をする\n\n\n３．一覧シートに移動し、一番左の列をクリックし、教科を追加\n\n　　　　　　　　　　※必要に応じて、２．３．の手順をくり返し、調整をする。\n\n４．テキストボックスや直線を追加し、シートの完成。\n　　－上のボタンをクリックすると、重点単元が色つきで囲まれます。\n"]
[]
[]
[null,"◇『一覧』シートの設定"]
[]
[null,"　　　：タイトル設定",null,"理科 カリキュラム表（植物準備表）　　◆新設　●新実験"]
[]
[null,null,null,"項目０１","項目０２","項目０３","項目０４","項目０５","項目０６","項目０７","項目０８","項目０９","項目１０"]
[null,"　　　：スイッチ項目設定",null,"新設","研修","新実験・観察","研修資料","研修会２","項目０６","項目０７",null,null,"上越学習"]
[]
[null,"　　　：単元表示設定",null,"「単元名」"]
[null,null,null,"「時数」",null,null,"：強調表示","OFF","：囲みのずれ幅",-1]
[]
[]
[null,"◇その他の項目の設定"]
[]
[null,"　　　：履歴フォルダ設定"]
[]
[null,"　　　：履歴へのリンク"]
[]
[null,null,null,1,2,3,4,5,6,7,8,9,10,11,12,13,14,15,16,17,18,19,20]
[null,"　　　：登録されたシート",null,"1年生活","2年生活","小3理","小4理","小5理","小6理","中1理","中2理","中3理","研修"]
[]
[null,"　　　：シートのあるファイル",null,"理科カリキュラムデータ生.xlsx","理科カリキュラムデータ生.xlsx","理科カリキュラムデータ生.xlsx","理科カリキュラムデータ生.xlsx","理科カリキュラムデータ生.xlsx","理科カリキュラムデータ生.xlsx","理科カリキュラムデータ生.xlsx","理科カリキュラムデータ生.xlsx","理科カリキュラムデータ生.xlsx","理科カリキュラムデータ.xlsx"]
[]
[]
[null,null,null,"平成24年度教科書",null,null,"上越地区採択"]
[null,null,null,"国語",null,"光村図書","http://www.mitsumura-tosho.co.jp/24ckyokasho/kokugo/dl/k_download.html#dl7"]
[null,null,null,"書写",null,"学校図書","http://www.gakuto.co.jp/hisyosya/down.html"]
[null,null,null,"社会","地理","東京書籍","http://ten.tokyo-shoseki.co.jp/downloadfr1/htm/jsc86880.htm"]
[null,null,null,null,"歴史","東京書籍","http://ten.tokyo-shoseki.co.jp/downloadfr1/htm/jsc86881.htm"]
[null,null,null,null,"公民","教育出版","http://www.kyoiku-shuppan.co.jp/view.rbz?cd=2080"]
[null,null,null,null,"地図","帝国書院","http://www.teikokushoin.co.jp/teacher/junior/index.html"]
[null,null,null,"数学",null,"学校図書","http://www.gakuto.co.jp/hisugaku/down.html"]
[null,null,null,"理科",null,"東京書籍","http://ten.tokyo-shoseki.co.jp/downloadfr1/htm/jrc86885/rika3.htm"]
[null,null,null,"音楽","一般","教育芸術社","http://www.kyogei.co.jp/data_room/nenkei/chu_keikaku24.html"]
[null,null,null,null,"器楽合奏","教育芸術社","http://www.kyogei.co.jp/data_room/nenkei/chu_keikaku24.html"]
[null,null,null,"美術",null,"開隆堂","http://www.kairyudo.co.jp/contents/02-chu/bijutsu/h24/index.htm"]
[null,null,null,"保健体育",null,"学研","http://gakkokyoiku.gakken.co.jp/junior/24hoken-taiiku.html"]
[null,null,null,"技術家庭","技術分野","開隆堂","http://www.kairyudo.co.jp/contents/02-chu/gijutsu/h24/index.htm"]
[null,null,null,null,"家庭分野","開隆堂","http://www.kairyudo.co.jp/contents/02-chu/katei/h24/index.htm"]
[null,null,null,"英語",null,"開隆堂","http://www.kairyudo.co.jp/contents/02-chu/eigo/h24/index.htm"]
[]
[null,"fontの濃さを決定するデータシート"]
[null,"fontの最低輝度",200]
[null,"ボタンの個数",1,2,3,4,5,6,7,8,9,10]
[null,1,0]
[null,2,37,0]
[null,3,58,22,0]
[null,4,73,37,15,0]
[null,5,84,48,27,12,0]
[null,6,94,58,37,22,10,0]
[null,7,102,66,45,30,18,9,0]
[null,8,109,73,52,37,25,15,7,0]
[null,9,115,79,58,43,31,22,14,7,0]
[null,10,120,84,63,48,37,27,19,12,6,0]
[]
[null,"読み込みシートの項目一時保存場所"]
[null,"×読み込まない"]
[null,"×読み込まない"]
[null,"×読み込まない"]
[null,"×読み込まない"]
[null,"×読み込まない"]
[null,"×読み込まない"]
[null,"×読み込まない"]
[null,"×読み込まない"]
[null,"E列:上越学習"]
[null,"J列:移行措置"]
[]
[]
[]
[]
[]
[]
[]
[]
[]
[]
[]
[]
[]
[]
[]
[]
[]
[]
[]
[]
[]
[]
[]
[]
[]
[]
[]
[null,"◇html出力用"]
[null,10,"width","90%",null,"全体"]
[null,null,"<!DOCTYPE html PUBLIC \"-//W3C//DTD XHTML 1.1//EN\" \"http://www.w3.org/TR/xhtml11/DTD/xhtml11.dtd\">"]
[null,null,"<html xmlns=\"http://www.w3.org/1999/xhtml\" xml:lang=\"ja\">"]
[null,null,"<head>"]
[null,null,"<meta http-equiv=\"Content-Type\" content=\"text/html; charset=shift-jis\" />"]
[null,null,"<meta http-equiv=\"Content-Script-Type\" content=\"text/javascript\" />"]
[null,null,"<meta http-equiv=\"Content-Style-Type\" content=\"text/css\" />"]
[null,null,"<meta name=\"generator\" content=\"mi\" />"]
[null,null,{"$f":"\"<title>\"&SheeTitle&\"</title>\"","v":"<title>理科 カリキュラム表（植物準備表）　　◆新設　●新実験</title>"}]
[null,null,"</head>"]
[null,null,"<body>"]
[null,null,"<table>"]
[null,null,"<tr valign=\"top\">"]
[null,null,{"$f":"\"<td>&emsp;\"&SheeTitle&\"&emsp;\"&NowYear&\"年\"&NowMonth&\"月\"&NowDay&\"日保存版</td>\"","v":"<td>&emsp;理科 カリキュラム表（植物準備表）　　◆新設　●新実験&emsp;2010年6月4日保存版</td>"}]
[null,null,"</tr>"]
[null,null,"<td>"]
[null,null,{"$f":"IF(B$101=ROW()-117,\"<img src=\"\"btn\"&ROW()-117&\"a.png\"\" width=40>&emsp;\",\"<A href=\"\"index\"&ROW()-117\n&\".html\"\"><img src=\"\"btn\"&ROW()-117&\"b.png\"\" width=40></A>&emsp;\")","v":"<A href=\"index0.html\"><img src=\"btn0b.png\" width=40></A>&emsp;"}]
[null,null,{"$f":"IF(B$101=ROW()-117,\"<img src=\"\"btn\"&ROW()-117&\"a.png\"\" width=40>&emsp;\",\"<A href=\"\"index\"&ROW()-117\n&\".html\"\"><img src=\"\"btn\"&ROW()-117&\"b.png\"\" width=40></A>&emsp;\")","v":"<A href=\"index1.html\"><img src=\"btn1b.png\" width=40></A>&emsp;"}]
[null,null,"<A href=\"index2.html\"><img src=\"btn2b.png\" width=40></A>&emsp;"]
[null,null,"<A href=\"index3.html\"><img src=\"btn3b.png\" width=40></A>&emsp;"]
[null,null,"<A href=\"index4.html\"><img src=\"btn4b.png\" width=40></A>&emsp;"]
[null,null,"<A href=\"index5.html\"><img src=\"btn5b.png\" width=40></A>&emsp;"]
[null,null,"<A href=\"index6.html\"><img src=\"btn6b.png\" width=40></A>&emsp;"]
[null,null,"<A href=\"index7.html\"><img src=\"btn7b.png\" width=40></A>&emsp;"]
[null,null,"<A href=\"index8.html\"><img src=\"btn8b.png\" width=40></A>&emsp;"]
[null,null,"<A href=\"index9.html\"><img src=\"btn9b.png\" width=40></A>&emsp;"]
[null,null,"<img src=\"btn10a.png\" width=40>&emsp;"]
[null,null,"</td>"]
[null,null,"</tr>"]
[null,null,"<tr valign=\"top\">"]
[null,null,{"$f":"\"<td colspan=\"\"2\"\"><a href=\"&CHAR(34) &$B$101&\".png\"&CHAR(34) &\"><img src=\"&CHAR(34) &$B$101&\".png\"&CHAR(34) &\" name=\"&CHAR(34) &\"img\" &$B$101&CHAR(34) &\" width=\"&CHAR(34) &$D$101&CHAR(34) &\" alt=\"&CHAR(34) &$A131&CHAR(34) &\" title=\"&CHAR(34) &$A131&CHAR(34) &\"></a></td>\"","v":"<td colspan=\"2\"><a href=\"10.png\"><img src=\"10.png\" name=\"img10\" width=\"90%\" alt=\"\" title=\"\"></a></td>"}]
[null,null,"</tr>"]
[null,null,"</table>"]
[null,null,"</table>"]
[null,null,"</body>"]
[null,null,"</html>"]